fUSD/lending_fUSD_20240420
["ID","MTS","AMOUNT","RATE_DAILY","PERIOD"]
[323043477,1713615044764,-922.4,0.00015068,2]
[323043478,1713615044773,-500.0,0.00015068,2]
[323043479,1713615044782,-500.0,0.00015068,2]
[323043480,1713615044791,-500.0,0.00015068,2]
[323043481,1713615044801,-500.0,0.00015068,2]
[323043482,1713615044810,-500.0,0.00015068,2]
[323043483,1713615044819,-610.81,0.00015068,2]
[323043484,1713615044828,-500.0,0.00015068,2]
[323043485,1713615044838,-943.86,0.00015068,2]
[323043486,1713615044847,-583.14,0.00015068,2]
[323043487,1713615044856,-500.0,0.00015068,2]
[323043488,1713615044867,-500.0,0.00015068,2]
[323043489,1713615044876,-500.0,0.00015068,2]
[323043490,1713615044885,-500.0,0.00015068,2]
[323043491,1713615044895,-500.0,0.00015068,2]
[323043492,1713615044906,-500.0,0.00015068,2]
[323043493,1713615044916,-500.0,0.00015068,2]
[323043494,1713615044925,-500.0,0.00015068,2]
[323043495,1713615044935,-581.68,0.00015068,2]
[323043496,1713615044944,-500.0,0.00015068,2]
[323043497,1713615044953,-500.0,0.00015068,2]
[323043498,1713615044962,-500.0,0.00015068,2]
[323043499,1713615044971,-500.0,0.00015068,2]
[323043500,1713615044980,-500.0,0.00015068,2]
[323043501,1713615044990,-500.0,0.00015068,2]
[323043502,1713615045000,-500.0,0.00015068,2]
[323043503,1713615045009,-500.0,0.00015068,2]
[323043504,1713615045019,-500.0,0.00015068,2]
[323043505,1713615045028,-500.0,0.00015068,2]
[323043506,1713615045038,-500.0,0.00015068,2]
[323043507,1713615045048,-558.25,0.00015068,2]
[323043508,1713615045057,-516.13,0.00015068,2]
[323043509,1713615045067,-772.56,0.00015068,2]
[323043510,1713615045077,-500.0,0.00015068,2]
[323043511,1713615045087,-500.0,0.00015068,2]
[323043512,1713615045096,-500.0,0.00015068,2]
[323043513,1713615045106,-500.0,0.00015068,2]
[323043514,1713615045116,-500.0,0.00015068,2]
[323043515,1713615045125,-500.0,0.00015068,2]
[323043516,1713615045135,-525.97,0.00015068,2]
[323043517,1713615045145,-674.79,0.00015068,2]
[323043518,1713615045156,-654.49,0.00015068,2]
[323043519,1713615045165,-500.0,0.00015068,2]
[323043520,1713615045175,-983.5,0.00015068,2]
[323043521,1713615045184,-160.50445739,0.00015068,2]
[323043522,1713615045194,-500.0,0.00015068,2]
[323043523,1713615045203,-588.05,0.00015068,2]
[323043524,1713615045212,-500.0,0.00015068,2]
[323043525,1713615045222,-500.0,0.00015068,2]
[323043526,1713615045231,-500.0,0.00015068,2]
[323043527,1713615045240,-500.0,0.00015068,2]
[323043528,1713615045250,-500.0,0.00015068,2]
[323043529,1713615045259,-500.0,0.00015068,2]
[323043530,1713615045268,-500.0,0.00015068,2]
[323043531,1713615045279,-500.0,0.00015068,2]
[323043532,1713615045288,-500.0,0.00015068,2]
[323043533,1713615045297,-500.0,0.00015068,2]
[323043534,1713615045308,-500.0,0.00015068,2]
[323043535,1713615045319,-500.0,0.00015068,2]
[323043536,1713615045329,-500.0,0.00015068,2]
[323043537,1713615045338,-500.0,0.00015068,2]
[323043538,1713615045348,-151.0,0.00015068,2]
[323043539,1713615045358,-747.33,0.00015068,2]
[323043540,1713615045369,-500.0,0.00015068,2]
[323043541,1713615045382,-500.0,0.00015068,2]
[323043542,1713615045392,-500.0,0.00015068,2]
[323043543,1713615045402,-500.0,0.00015068,2]
[323043544,1713615045411,-500.0,0.00015068,2]
[323043545,1713615045422,-692.8,0.00015068,2]
[323043546,1713615045432,-723.5,0.00015068,2]
[323043547,1713615045442,-500.0,0.00015068,2]
[323043548,1713615045453,-151.0,0.00015068,2]
[323043549,1713615045462,-500.0,0.00015068,2]
[323043550,1713615045472,-500.0,0.00015068,2]
[323043551,1713615045482,-151.0,0.00015068,2]
[323043552,1713615045491,-576.47,0.00015068,2]
[323043553,1713615045501,-946.8,0.00015068,2]
[323043554,1713615045511,-500.0,0.00015068,2]
[323043555,1713615045522,-500.0,0.00015068,2]
[323043556,1713615045532,-500.0,0.00015068,2]
[323043557,1713615045543,-500.0,0.00015068,2]
[323043558,1713615045553,-942.76,0.00015068,2]
[323043559,1713615045563,-500.0,0.00015068,2]
[323043560,1713615045572,-500.0,0.00015068,2]
[323043561,1713615045582,-500.0,0.00015068,2]
[323043562,1713615045591,-1115.01,0.00015068,2]
[323043563,1713615045601,-500.0,0.00015068,2]
[323043564,1713615045611,-500.0,0.00015068,2]
[323043565,1713615045621,-500.0,0.00015068,2]
[323043566,1713615045631,-500.0,0.00015068,2]
[323043567,1713615045641,-1243.7,0.00015068,2]
[323043568,1713615045653,-500.0,0.00015068,2]
[323043569,1713615045663,-500.0,0.00015068,2]
[323043570,1713615045673,-500.0,0.00015068,2]
[323043571,1713615045684,-778.05,0.00015068,2]
[323043572,1713615045694,-500.0,0.00015068,2]
[323043573,1713615045704,-500.0,0.00015068,2]
[323043574,1713615045714,-500.0,0.00015068,2]
[323043575,1713615045723,-500.0,0.00015068,2]
[323043576,1713615045733,-500.0,0.00015068,2]
[323043577,1713615045743,-500.0,0.00015068,2]
[323043578,1713615045752,-500.0,0.00015068,2]
[323043579,1713615045762,-500.0,0.00015068,2]
[323043580,1713615045772,-151.0,0.00015068,2]
[323043581,1713615045782,-500.0,0.00015068,2]
[323043582,1713615045791,-500.0,0.00015068,2]
[323043583,1713615045801,-152.08537207,0.00015068,2]
[323043584,1713615045810,-747.45,0.00015068,2]
[323043585,1713615045820,-500.0,0.00015068,2]
[323043586,1713615045830,-500.0,0.00015068,2]
[323043587,1713615045840,-500.0,0.00015068,2]
[323043588,1713615045849,-500.0,0.00015068,2]
[323043589,1713615045859,-998.69,0.00015068,2]
[323043590,1713615045868,-500.0,0.00015068,2]
[323043591,1713615045877,-500.0,0.00015068,2]
[323043592,1713615045887,-500.0,0.00015068,2]
[323043593,1713615045897,-500.0,0.00015068,2]
[323043594,1713615045907,-500.0,0.00015068,2]
[323043595,1713615045916,-649.81,0.00015068,2]
[323043596,1713615045926,-500.0,0.00015068,2]
[323043597,1713615045936,-1025.52,0.00015068,2]
[323043598,1713615045945,-151.0,0.00015068,2]
[323043599,1713615045955,-956.95,0.00015068,2]
[323043600,1713615045964,-500.0,0.00015068,2]
[323043601,1713615045974,-500.0,0.00015068,2]
[323043602,1713615045983,-151.0,0.00015068,2]
[323043603,1713615045994,-500.0,0.00015068,2]
[323043604,1713615046005,-500.0,0.00015068,2]
[323043605,1713615046014,-500.0,0.00015068,2]
[323043606,1713615046023,-509.87,0.00015068,2]
[323043607,1713615046033,-1130.573107,0.00015068,2]
[323043608,1713615046043,-500.0,0.00015068,2]
[323043609,1713615046053,-552.91,0.00015068,2]
[323043610,1713615046063,-1886.34,0.00015068,2]
[323043611,1713615046072,-500.0,0.00015068,2]
[323043612,1713615046081,-500.0,0.00015068,2]
[323043613,1713615046090,-1693.65,0.00015068,2]
[323043614,1713615046099,-500.0,0.00015068,2]
[323043615,1713615046110,-500.7,0.00015068,2]
[323043616,1713615046120,-500.0,0.00015068,2]
[323043617,1713615046129,-1130.573107,0.00015068,2]
[323043618,1713615046139,-500.0,0.00015068,2]
[323043619,1713615046148,-151.0,0.00015068,2]
[323043620,1713615046158,-500.0,0.00015068,2]
[323043621,1713615046167,-600.76,0.00015068,2]
[323043622,1713615046177,-500.0,0.00015068,2]
[323043623,1713615046186,-1301.99,0.00015068,2]
[323043624,1713615046195,-500.0,0.00015068,2]
[323043625,1713615046205,-500.0,0.00015068,2]
[323043626,1713615046214,-500.0,0.00015068,2]
[323043627,1713615046223,-558.98,0.00015068,2]
[323043628,1713615046233,-500.0,0.00015068,2]
[323043629,1713615046244,-500.0,0.00015068,2]
[323043630,1713615046253,-1123.09,0.00015068,2]
[323043631,1713615046262,-971.12,0.00015068,2]
[323043632,1713615046272,-500.0,0.00015068,2]
[323043633,1713615046281,-151.0,0.00015068,2]
[323043634,1713615046290,-500.0,0.00015068,2]
[323043635,1713615046299,-500.0,0.00015068,2]
[323043636,1713615046309,-500.0,0.00015068,2]
[323043637,1713615046318,-153.961529,0.00015068,2]
[323043638,1713615046327,-500.0,0.00015068,2]
[323043639,1713615046337,-500.0,0.00015068,2]
[323043640,1713615046347,-500.0,0.00015068,2]
[323043641,1713615046356,-500.0,0.00015068,2]
[323043642,1713615046366,-1627.69,0.00015068,2]
[323043643,1713615046375,-500.0,0.00015068,2]
[323043644,1713615046385,-500.0,0.00015068,2]
[323043645,1713615046396,-730.92,0.00015068,2]
[323043646,1713615046406,-1500.36,0.00015068,2]
[323043647,1713615046415,-177.27242034,0.00015068,2]
[323043648,1713615046425,-151.0,0.00015068,2]
[323043649,1713615046435,-817.63,0.00015068,2]
[323043650,1713615046444,-500.0,0.00015068,2]
[323043651,1713615046454,-500.0,0.00015068,2]
[323043652,1713615046464,-152.31172,0.00015068,2]
[323043653,1713615046473,-500.0,0.00015068,2]
[323043654,1713615046483,-500.0,0.00015068,2]
[323043655,1713615046492,-500.0,0.00015068,2]
[323043656,1713615046503,-500.0,0.00015068,2]
[323043657,1713615046513,-500.0,0.00015068,2]
[323043658,1713615046523,-500.0,0.00015068,2]
[323043659,1713615046532,-1122.67,0.00015068,2]
[323043660,1713615046542,-500.0,0.00015068,2]
[323043661,1713615046552,-500.0,0.00015068,2]
[323043662,1713615046561,-500.0,0.00015068,2]
[323043663,1713615046571,-500.0,0.00015068,2]
[323043664,1713615046581,-959.94,0.00015068,2]
[323043665,1713615046591,-150.0,0.00015068,2]
[323043666,1713615046602,-1694.52,0.00015068,2]
[323043667,1713615046611,-829.71,0.00015068,2]
[323043668,1713615046621,-500.0,0.00015068,2]
[323043669,1713615046631,-500.0,0.00015068,2]
[323043670,1713615046640,-500.0,0.00015068,2]
[323043671,1713615046649,-500.0,0.00015068,2]
[323043672,1713615046659,-500.0,0.00015068,2]
[323043673,1713615046668,-500.0,0.00015068,2]
[323043674,1713615046677,-167.552808,0.00015068,2]
[323043675,1713615046687,-500.0,0.00015068,2]
[323043676,1713615046698,-500.0,0.00015068,2]
[323043677,1713615046707,-500.0,0.00015068,2]
[323043678,1713615046717,-500.0,0.00015068,2]
[323043679,1713615046727,-1401.32,0.00015068,2]
[323043680,1713615046736,-905.55,0.00015068,2]
[323043681,1713615046746,-500.0,0.00015068,2]
[323043682,1713615046755,-500.0,0.00015068,2]
[323043683,1713615046764,-500.0,0.00015068,2]
[323043684,1713615046775,-537.45,0.00015068,2]
[323043685,1713615046784,-500.0,0.00015068,2]
[323043686,1713615046793,-167.552808,0.00015068,2]
[323043687,1713615046803,-500.0,0.00015068,2]
[323043688,1713615046812,-500.0,0.00015068,2]
[323043689,1713615046822,-500.0,0.00015068,2]
[323043690,1713615046831,-500.0,0.00015068,2]
[323043691,1713615046841,-500.0,0.00015068,2]
[323043693,1713615046852,-500.0,0.00015068,2]
[323043695,1713615046861,-500.0,0.00015068,2]
[323043697,1713615046870,-500.0,0.00015068,2]
[323043699,1713615046879,-500.0,0.00015068,2]
[323043701,1713615046889,-500.0,0.00015068,2]
[323043703,1713615046900,-500.0,0.00015068,2]
[323043705,1713615046911,-528.39,0.00015068,2]
[323043707,1713615046922,-612.87,0.00015068,2]
[323043709,1713615046931,-1021.58,0.00015068,2]
[323043710,1713615046941,-500.0,0.00015068,2]
[323043711,1713615046950,-527.27,0.00015068,2]
[323043712,1713615046959,-1672.8,0.00015068,2]
[323043713,1713615046968,-500.0,0.00015068,2]
[323043714,1713615046977,-500.0,0.00015068,2]
[323043715,1713615046987,-500.0,0.00015068,2]
[323043716,1713615046996,-2102.91,0.00015068,2]
[323043717,1713615047005,-500.0,0.00015068,2]
[323043718,1713615047014,-500.0,0.00015068,2]
[323043719,1713615047023,-500.0,0.00015068,2]
[323043720,1713615047033,-500.0,0.00015068,2]
[323043721,1713615047042,-500.0,0.00015068,2]
[323043722,1713615047051,-1271.86,0.00015068,2]
[323043723,1713615047061,-500.0,0.00015068,2]
[323043724,1713615047155,-500.0,0.00015068,2]
[323043725,1713615047164,-500.0,0.00015068,2]
[323043726,1713615047173,-500.0,0.00015068,2]
[323043727,1713615047181,-500.0,0.00015068,2]
[323043728,1713615047190,-156.988049,0.00015068,2]
[323043729,1713615047199,-500.0,0.00015068,2]
[323043730,1713615047209,-1132.15,0.00015068,2]
[323043731,1713615047218,-500.0,0.00015068,2]
[323043732,1713615047229,-500.0,0.00015068,2]
[323043733,1713615047238,-500.0,0.00015068,2]
[323043734,1713615047247,-500.0,0.00015068,2]
[323043735,1713615047257,-500.0,0.00015068,2]
[323043736,1713615047266,-500.0,0.00015068,2]
[323043737,1713615047276,-1692.18,0.00015068,2]
[323043738,1713615047286,-500.0,0.00015068,2]
[323043739,1713615047296,-888.43,0.00015068,2]
[323043740,1713615047306,-500.0,0.00015068,2]
[323043741,1713615047316,-500.0,0.00015068,2]
[323043742,1713615047325,-500.0,0.00015068,2]
[323043743,1713615047334,-500.0,0.00015068,2]
[323043744,1713615047344,-311.86976,0.00015068,2]
[323043745,1713615047354,-500.0,0.00015068,2]
[323043746,1713615047364,-156.19651,0.00015068,2]
[323043747,1713615047376,-495.25,0.00015068,2]
[323043748,1713615047389,-500.0,0.00015068,2]
[323043749,1713615047398,-500.0,0.00015068,2]
[323043750,1713615047409,-500.0,0.00015068,2]
[323043751,1713615047419,-151.0,0.00015068,2]
[323043752,1713615047429,-311.86976,0.00015068,2]
[323043753,1713615047438,-590.76,0.00015068,2]
[323043754,1713615047447,-500.0,0.00015068,2]
[323043755,1713615047458,-1590.37,0.00015068,2]
[323043756,1713615047468,-500.0,0.00015068,2]
[323043757,1713615047477,-500.0,0.00015068,2]
[323043758,1713615047486,-500.0,0.00015068,2]
[323043759,1713615047495,-500.0,0.00015068,2]
[323043760,1713615047504,-1227.03,0.00015068,2]
[323043761,1713615047513,-500.0,0.00015068,2]
[323043762,1713615047522,-500.0,0.00015068,2]
[323043763,1713615047532,-500.0,0.00015068,2]
[323043764,1713615047543,-500.0,0.00015068,2]
[323043765,1713615047552,-1649.09,0.00015068,2]
[323043766,1713615047561,-500.0,0.00015068,2]
[323043767,1713615047571,-1323.41,0.00015068,2]
[323043768,1713615047580,-500.0,0.00015068,2]
[323043769,1713615047589,-500.0,0.00015068,2]
[323043770,1713615047599,-500.0,0.00015068,2]
[323043771,1713615047608,-500.0,0.00015068,2]
[323043772,1713615047618,-500.0,0.00015068,2]
[323043773,1713615047628,-742.33,0.00015068,2]
[323043774,1713615047637,-500.0,0.00015068,2]
[323043775,1713615047646,-500.0,0.00015068,2]
[323043776,1713615047657,-621.99,0.00015068,2]
[323043777,1713615047666,-500.0,0.00015068,2]
[323043778,1713615047676,-500.0,0.00015068,2]
[323043779,1713615047685,-500.0,0.00015068,2]
[323043780,1713615047694,-1318.12,0.00015068,2]
[323043781,1713615047703,-1260.32,0.00015068,2]
[323043782,1713615047713,-500.0,0.00015068,2]
[323043783,1713615047723,-500.0,0.00015068,2]
[323043784,1713615047733,-623.84,0.00015068,2]
[323043785,1713615047743,-500.0,0.00015068,2]
[323043786,1713615047753,-500.0,0.00015068,2]
[323043787,1713615047762,-500.0,0.00015068,2]
[323043788,1713615047771,-569.73,0.00015068,2]
[323043789,1713615047780,-500.0,0.00015068,2]
[323043790,1713615047789,-151.0,0.00015068,2]
[323043791,1713615047798,-500.0,0.00015068,2]
[323043792,1713615047807,-183.110084,0.00015068,2]
[323043793,1713615047816,-1266.83,0.00015068,2]
[323043794,1713615047825,-2550.54,0.00015068,2]
[323043795,1713615047834,-823.88,0.00015068,2]
[323043796,1713615047844,-500.0,0.00015068,2]
[323043797,1713615047853,-500.0,0.00015068,2]
[323043798,1713615047862,-758.17,0.00015068,2]
[323043799,1713615047871,-502.31,0.00015068,2]
[323043800,1713615047880,-500.0,0.00015068,2]
[323043801,1713615047890,-500.0,0.00015068,2]
[323043802,1713615047898,-500.0,0.00015068,2]
[323043803,1713615047908,-500.0,0.00015068,2]
[323043804,1713615047917,-500.0,0.00015068,2]
[323043805,1713615047926,-827.03,0.00015068,2]
[323043806,1713615047935,-500.0,0.00015068,2]
[323043807,1713615047944,-500.0,0.00015068,2]
[323043808,1713615047953,-500.0,0.00015068,2]
[323043809,1713615047962,-1256.68,0.00015068,2]
[323043810,1713615047971,-1390.79,0.00015068,2]
[323043811,1713615047980,-1130.11,0.00015068,2]
[323043812,1713615047989,-362.391714,0.00015068,2]
[323043813,1713615047998,-500.0,0.00015068,2]
[323043814,1713615048007,-500.0,0.00015068,2]
[323043815,1713615048017,-500.0,0.00015068,2]
[323043816,1713615048027,-981.91,0.00015068,2]
[323043817,1713615048036,-500.0,0.00015068,2]
[323043818,1713615048046,-523.47071016,0.00015068,2]
[323043819,1713615048055,-500.0,0.00015068,2]
[323043820,1713615048064,-500.0,0.00015068,2]
[323043821,1713615048073,-500.0,0.00015068,2]
[323043822,1713615048082,-719.36,0.00015068,2]
[323043823,1713615048091,-801.29,0.00015068,2]
[323043824,1713615048101,-500.0,0.00015068,2]
[323043825,1713615048110,-500.0,0.00015068,2]
[323043826,1713615048119,-500.0,0.00015068,2]
[323043827,1713615048129,-500.0,0.00015068,2]
[323043828,1713615048138,-3737.3,0.00015068,2]
[323043829,1713615048147,-151.0,0.00015068,2]
[323043830,1713615048158,-500.0,0.00015068,2]
[323043831,1713615048167,-1524.43,0.00015068,2]
[323043832,1713615048176,-2095.32,0.00015068,2]
[323043833,1713615048185,-500.0,0.00015068,2]
[323043834,1713615048194,-500.0,0.00015068,2]
[323043835,1713615048203,-723.57,0.00015068,2]
[323043836,1713615048213,-13422.31,0.00015068,2]
[323043837,1713615048222,-969.36,0.00015068,2]
[323043838,1713615048231,-500.0,0.00015068,2]
[323043839,1713615048241,-500.0,0.00015068,2]
[323043840,1713615048250,-500.0,0.00015068,2]
[323043841,1713615048258,-22452.43,0.00015068,2]
[323043842,1713615048268,-500.0,0.00015068,2]
[323043843,1713615048277,-500.0,0.00015068,2]
[323043844,1713615048286,-151.0,0.00015068,2]
[323043845,1713615048295,-500.0,0.00015068,2]
[323043846,1713615048305,-500.0,0.00015068,2]
[323043847,1713615048315,-1605.68,0.00015068,2]
[323043848,1713615048324,-1307.46,0.00015068,2]
[323043849,1713615048334,-635.04,0.00015068,2]
[323043850,1713615048343,-500.0,0.00015068,2]
[323043851,1713615048352,-500.0,0.00015068,2]
[323043852,1713615048361,-339.76484344,0.00015068,2]
[323043853,1713615048372,-915.54,0.00015068,2]
[323043854,1713615048381,-500.0,0.00015068,2]
[323043855,1713615048391,-500.0,0.00015068,2]
[323043856,1713615048401,-500.0,0.00015068,2]
[323043857,1713615048410,-500.0,0.00015068,2]
[323043858,1713615048420,-500.0,0.00015068,2]
[323043859,1713615048429,-852.82,0.00015068,2]
[323043860,1713615048439,-500.0,0.00015068,2]
[323043861,1713615048448,-1895.04,0.00015068,2]
[323043862,1713615048458,-500.0,0.00015068,2]
[323043863,1713615048467,-1231.12,0.00015068,2]
[323043864,1713615048476,-1076.16,0.00015068,2]
[323043865,1713615048486,-500.0,0.00015068,2]
[323043866,1713615048495,-639.54,0.00015068,2]
[323043867,1713615048504,-1535.09,0.00015068,2]
[323043868,1713615048513,-500.0,0.00015068,2]
[323043869,1713615048522,-1591.9,0.00015068,2]
[323043870,1713615048532,-500.0,0.00015068,2]
[323043871,1713615048542,-500.0,0.00015068,2]
[323043872,1713615048551,-500.0,0.00015068,2]
[323043873,1713615048560,-26145.17,0.00015068,2]
[323043874,1713615048569,-855.47,0.00015068,2]
[323043875,1713615048578,-500.0,0.00015068,2]
[323043876,1713615048587,-151.0,0.00015068,2]
[323043877,1713615048596,-500.0,0.00015068,2]
[323043878,1713615048605,-151.0,0.00015068,2]
[323043879,1713615048614,-500.0,0.00015068,2]
[323043880,1713615048624,-500.0,0.00015068,2]
[323043881,1713615048633,-500.0,0.00015068,2]
[323043882,1713615048642,-500.0,0.00015068,2]
[323043883,1713615048653,-500.0,0.00015068,2]
[323043884,1713615048661,-2882.99,0.00015068,2]
[323043885,1713615048670,-500.0,0.00015068,2]
[323043886,1713615048679,-1490.38,0.00015068,2]
[323043887,1713615048688,-500.0,0.00015068,2]
[323043888,1713615048698,-2196.24,0.00015068,2]
[323043889,1713615048706,-573.98822222,0.00015068,2]
[323043890,1713615048716,-630.97,0.00015068,2]
[323043891,1713615048725,-2445.79,0.00015068,2]
[323043892,1713615048734,-151.0,0.00015068,2]
[323043893,1713615048743,-500.0,0.00015068,2]
[323043894,1713615048752,-500.0,0.00015068,2]
[323043895,1713615048761,-856.42,0.00015068,2]
[323043896,1713615048770,-2960.02,0.00015068,2]
[323043897,1713615048779,-500.0,0.00015068,2]
[323043898,1713615048788,-497.00261394,0.00015068,2]
[323043899,1713615048797,-500.0,0.00015068,2]
[323043900,1713615048807,-500.0,0.00015068,2]
[323043901,1713615048816,-1014.039391,0.00015068,2]
[323043902,1713615048825,-1682.64,0.00015068,2]
[323043903,1713615048834,-717.35,0.00015068,2]
[323043904,1713615048843,-654.32,0.00015068,2]
[323043905,1713615048853,-500.0,0.00015068,2]
[323043906,1713615048862,-500.0,0.00015068,2]
[323043907,1713615048871,-500.0,0.00015068,2]
[323043908,1713615048880,-500.0,0.00015068,2]
[323043909,1713615048889,-500.0,0.00015068,2]
[323043910,1713615048898,-500.0,0.00015068,2]
[323043911,1713615048907,-18305.92,0.00015068,2]
[323043912,1713615048916,-1592.99,0.00015068,2]
[323043913,1713615048925,-500.0,0.00015068,2]
[323043914,1713615048933,-1014.039391,0.00015068,2]
[323043915,1713615048942,-2608.96,0.00015068,2]
[323043916,1713615048953,-500.0,0.00015068,2]
[323043917,1713615048963,-1515.59,0.00015068,2]
[323043918,1713615048972,-500.0,0.00015068,2]
[323043919,1713615048981,-151.0,0.00015068,2]
[323043920,1713615048990,-1143.94,0.00015068,2]
[323043921,1713615049000,-500.0,0.00015068,2]
[323043922,1713615049009,-1597.07,0.00015068,2]
[323043923,1713615049018,-2816.43,0.00015068,2]
[323043924,1713615049029,-500.0,0.00015068,2]
[323043925,1713615049038,-500.0,0.00015068,2]
[323043926,1713615049048,-500.0,0.00015068,2]
[323043927,1713615049056,-500.0,0.00015068,2]
[323043928,1713615049065,-500.0,0.00015068,2]
[323043929,1713615049074,-1449.62,0.00015068,2]
[323043930,1713615049083,-500.0,0.00015068,2]
[323043931,1713615049092,-500.0,0.00015068,2]
[323043932,1713615049101,-1676.91,0.00015068,2]
[323043933,1713615049111,-719.71,0.00015068,2]
[323043934,1713615049120,-1583.56,0.00015068,2]
[323043935,1713615049129,-2407.92,0.00015068,2]
[323043936,1713615049138,-500.0,0.00015068,2]
[323043937,1713615049147,-500.0,0.00015068,2]
[323043938,1713615049157,-502.56,0.00015068,2]
[323043939,1713615049166,-5521.92,0.00015068,2]
[323043940,1713615049175,-500.0,0.00015068,2]
[323043941,1713615049185,-151.0,0.00015068,2]
[323043942,1713615049193,-501.99675827,0.00015068,2]
[323043943,1713615049203,-735.88,0.00015068,2]
[323043944,1713615049212,-500.0,0.00015068,2]
[323043945,1713615049221,-500.0,0.00015068,2]
[323043946,1713615049230,-2102.62,0.00015068,2]
[323043947,1713615049239,-166.42351258,0.00015068,2]
[323043948,1713615049248,-1029.91,0.00015068,2]
[323043949,1713615049257,-2218.59,0.00015068,2]
[323043950,1713615049266,-500.0,0.00015068,2]
[323043951,1713615049276,-500.0,0.00015068,2]
[323043952,1713615049285,-500.0,0.00015068,2]
[323043953,1713615049294,-500.0,0.00015068,2]
[323043954,1713615049303,-976.21,0.00015068,2]
[323043955,1713615049313,-500.0,0.00015068,2]
[323043956,1713615049322,-500.0,0.00015068,2]
[323043957,1713615049331,-500.0,0.00015068,2]
[323043958,1713615049341,-500.0,0.00015068,2]
[323043959,1713615049349,-500.0,0.00015068,2]
[323043960,1713615049358,-444.37473599,0.00015068,2]
[323043961,1713615049368,-500.0,0.00015068,2]
[323043962,1713615049378,-735.21,0.00015068,2]
[323043963,1713615049387,-1335.29,0.00015068,2]
[323043964,1713615049396,-500.0,0.00015068,2]
[323043965,1713615049406,-500.0,0.00015068,2]
[323043966,1713615049415,-151.0,0.00015068,2]
[323043967,1713615049424,-500.0,0.00015068,2]
[323043968,1713615049433,-500.0,0.00015068,2]
[323043969,1713615049442,-21002.68,0.00015068,2]
[323043970,1713615049452,-5074.56,0.00015068,2]
[323043971,1713615049461,-500.0,0.00015068,2]
[323043972,1713615049471,-562.74,0.00015068,2]
[323043973,1713615049480,-972.96,0.00015068,2]
[323043974,1713615049489,-500.0,0.00015068,2]
[323043975,1713615049498,-151.0,0.00015068,2]
[323043976,1713615049507,-1133.54,0.00015068,2]
[323043977,1713615049517,-539.07,0.00015068,2]
[323043978,1713615049526,-500.0,0.00015068,2]
[323043979,1713615049535,-500.0,0.00015068,2]
[323043980,1713615049544,-1186.64,0.00015068,2]
[323043981,1713615049553,-2634.29,0.00015068,2]
[323043982,1713615049562,-500.0,0.00015068,2]
[323043983,1713615049570,-151.0,0.00015068,2]
[323043984,1713615049579,-778.48,0.00015068,2]
[323043985,1713615049588,-1011.83,0.00015068,2]